{"text_format":"3","workbook":"xlsx","n_sheets":2,"sheets":["Preambles","BOQ"],"not_rendered":{"external_links":11,"defined_names":565},"read":"whole","date_system":"1900"}

{"sheet":"Preambles","index":0,"n_rows":46,"n_cols":4,"rows_kept":46,"merged":[[3,2,3,3]]}
[]
[]
[]
[null,null,"PREAMBLES - METHOD OF MEASUREMENT"]
[]
[null,null,1,"The Tenderer is advised to read and understand all aspects and documentation associated with this Enquiry BEFORE inserting his Prices and or Rates and or Amounts. "]
[]
[null,null,2,"The bill of quantities provides the basis of all  valuations of the work, price adjustment (CPA) and general progress monitoring. "]
[]
[null,null,3,"The amount due at each application for payment is based  as measured in terms of the bill of quantities. The Contractor provides all  necessary  information which is required to determine amounts due at each application for payment relative to the completed works"]
[]
[null,null,4,"The total of the prices includes for all direct and indirect costs, overheads, profits, on costs, risks, liabilities, obligations, etc. relative to the contract."]
[]
[null,null,5,"All values are total values prior to any retention and excludes VAT."]
[]
[null,null,6,"Tenderer to check and take responsibility for all descriptions, formulae and structure of this file."]
[]
[null,null,"A","GUIDANCE BEFORE PRICING AND MEASURING "]
[]
[null,null,1,"The NEC's approach to the Preliminary & General (P&G) section of the bill of quantities assumes use will be made of method related charges for project applied to providing the works based on durations shown in the Accepted Programme. Fixed charges for the use of Equipment that are required throughout the construction phase, time related charges for people working in a managerial and supervisory capacity for the period required, and lump sum charges for other facilities or services not directly related to performing work items typically included in other parts of the bill of quantities."]
[]
[null,null,"B","METHOD OF MEASUREMENT "]
[]
[null,null,1,"The bill of quantities comprises a list of work items and quantities, based on standard methods of measurement, which are either published or stated herein and state the items to be included and how quantities are to be calculated and the items and activities that are deemed to be included within the Rates and Prices inserted by the Tenderer."]
[]
[null,null,2,"Tenderers shall price the items, taking account all of the information within and associated with the tender documents and shall include for all matters, which are at the Contractors risk."]
[]
[null,null,3,"All enquiry documents supplied must be considered for pricing the items in the Bills of Quantities for the completion of the works."]
[]
[null,null,4,"Unless otherwise stated, items are measured net in accordance with the contract drawings, and no allowance has been made for waste or bulking or compaction or evaporation or loss by any means whatsoever."]
[]
[null,null,5,"The quantities contained in the bill of quantities are provisional shall not be used for ordering purposes. No claims whatsoever, however arising will be entertained, should the bill of quantities have been used for ordering and or procurement purposes. "]
[]
[null,null,"C","RATES AND PRICES"]
[]
[null,null,1,"Rates and Prices shall be expressed to two decimal places (i.e. cents) except in the case of a NIL rate or price."]
[]
[null,null,2,"The Tenderers Rates and Prices shall be inserted in the bill of quantities and are deemed to be fully inclusive Rates and Prices to the Employer for the work described under the several items. Such Rates and Prices shall cover all costs and expenses that may be required in, and for the prompt and efficient and safe execution of the work described, and shall cover the cost of all general risks, liabilities and obligations set  forth or implied in this Enquiry document."]
[]
[null,null,3,"Rates and Prices for items which are required to be inserted in the bill of quantities by the Tenderer and which have not been duly inserted, are deemed to be covered by other Rates and Prices in the bill of quantities. "]
[]
[null,null,4,"The Tenderers omission to insert Rates and Prices shall not be deemed to be a qualified exclusion to execute such work, activity or responsibility."]
[]
[null,null,5,"The Rates and Prices are deemed to include (unless otherwise specifically stated in the bill of quantities or herein) all the relevant costs associated with the Clauses of  Contract as amended and shall include but not be limited to the following cost components:"]
[]
[null,null,6,"The Tenderer is deemed to have obtained all the necessary information required to adequately price the scope of work associated with this Enquiry and no claim shall be considered resulting from lack of knowledge in this respect."]

{"sheet":"BOQ","index":1,"n_rows":20,"n_cols":30,"rows_kept":20}
["SHARED SERVICES - BOQ FOR PROVISION FOR PEOPLE WITH DISABILITIES"]
["Level","Item","Bill description","Unit","SHARED SERVICES","TGS","TSS","BMH","CS (Incl. Stores)","R & R","LOGISTICS","PAS","No","HRS Estimated","Total HRS","Base Rate","Escalation 12% - 2025","UIF (1%)","Provident Fund (5%)","COID/WCA (4%)","Liability Insurance (10%)","Overhead & Profit (30%)","Total \n[O-V]","Daily Rate (8hrs)","Escalation 5.2% - 2026/27","Escalation 10.42% - 2028-29","Year 1","Year 2","Year 3","Total"]
[1,null,"PROVISION FOR PEOPLE WITH DISABILITIES",{"$nulls":13},1.12,{"v":0.005,"d":"0.01"},0.05,0.04,{"v":0.1,"d":"0.10"},{"v":0.3,"d":"0.30"},null,null,{"v":1.05213,"d":"1.05"},{"v":1.10427,"d":"1.10"}]
["c",null,"The Tenderer is advised to read and understand the Preambles of this Bill of Quantities prior to pricing."]
[2,"A","Positions identified for PWDs in the different Business Units at ERI across all occupational levels, but not limited to:","",null,"",{"$nulls":7},145]
[null,"A.1","Stacker Operator","Hour",{"$nulls":8},1,{"$f":"$N$5","v":145},{"$f":"+N6*3","v":435},{"$nulls":9},{"$f":"+W6*$Y$3","v":{"v":0,"d":"0.00"}},{"$f":"+Y6*$Z$3","v":{"v":0,"d":"0.00"}},{"$f":"+W6*N6","v":0},{"$f":"+Y6*N6","v":0},{"$f":"+Z6*N6","v":0}]
[null,"A.2","Environmental Officer","Hour",{"$nulls":8},1,{"$f":"$N$5","v":145},{"$f":"+N7*3","v":435},{"$nulls":9},{"$f":"+W7*$Y$3","v":{"v":0,"d":"0.00"}},{"$f":"+Y7*$Z$3","v":{"v":0,"d":"0.00"}},{"$f":"+W7*N7","v":0},{"$f":"+Y7*N7","v":0},{"$f":"+Z7*N7","v":0}]
[null,"A.3","Administrator (Sales)","Hour",{"$nulls":8},1,145,435,{"$nulls":9},{"v":0,"d":"0.00"},{"v":0,"d":"0.00"},0,0,0]
[null,"A.4","Administrator Communication","Hour",{"$nulls":8},1,145,435,{"$nulls":9},{"v":0,"d":"0.00"},{"v":0,"d":"0.00"},0,0,0]
[null,"A.5","Administrative Clerk","Hour",{"$nulls":8},1,145,435,{"$nulls":9},{"v":0,"d":"0.00"},{"v":0,"d":"0.00"},0,0,0]
[null,"A.6","Projects Hrs - Administration","Hour",{"$nulls":8},1,145,435,{"$nulls":9},{"v":0,"d":"0.00"},{"v":0,"d":"0.00"},0,0,0]
[null,"A.7","Project co-ordinator","Hour",{"$nulls":8},1,145,435,{"$nulls":9},{"v":0,"d":"0.00"},{"v":0,"d":"0.00"},0,0,0]
[null,"A.8","SHE Officer","Hour",{"$nulls":8},1,145,435,{"$nulls":9},{"v":0,"d":"0.00"},{"v":0,"d":"0.00"},0,0,0]
[null,"A.9","Site Clerk","Hour",{"$nulls":8},1,145,435,{"$nulls":9},{"v":0,"d":"0.00"},{"v":0,"d":"0.00"},0,0,0]
[null,"A.10","Quantity Surveyor","Hour",{"$nulls":8},1,145,435,{"$nulls":9},{"v":0,"d":"0.00"},{"v":0,"d":"0.00"},0,0,0]
[]
[{"$nulls":26},{"$f":"SUM(AA6:AA16)","v":0},{"$f":"SUM(AB6:AB16)","v":0},{"$f":"SUM(AC6:AC16)","v":0},{"$f":"SUM(AA17:AC17)","v":0}]
[null,"B","Disbursements and Contingencies"]
[null,"B.1","Dirsbursement","Prov Sum",{"$nulls":22},{"$f":"+AA17*1.06","v":0},{"$f":"+AB17*1.06","v":0},0,{"$f":"SUM(AA19:AC19)","v":0}]
[null,"B.2","Contingency (10%)","%",{"$nulls":22},{"$f":"+AA19*1.1","v":0},{"$f":"+AB19*1.1","v":0},0,{"$f":"SUM(AA20:AC20)","v":0}]